bitfinex/quotes_ETHUSD_20250123
["timestamp","ask_amount","ask_price","bid_price","bid_amount"]
[1737664187847,4.58457,3285.4,3284.2,0.03044369]
[1737664187848,1.5408,3285.4,3284.2,0.03044369]
[1737664188010,4.58459,3285.4,3284.6,3.0445]
[1737664188211,1.5408,3285.4,3284.2,0.03044369]
[1737664188408,1.5408,3285.4,3284.6,3.04441]
[1737664188636,0.47666241,3285.2,3284.7,0.03043952]
[1737664188820,0.47666241,3285.2,3284.9,3.04414]
[1737664189028,3.04444,3284.7,3283.7,3.04532]
[1737664189423,0.47666241,3285.2,3283.8,3.0452]
[1737664189621,0.47666241,3285.2,3284.2,3.04482]
[1737664189947,0.47666241,3285.2,3283.7,0.58044287]
[1737664190108,0.47666241,3285.2,3284.7,3.04438]
[1737664190665,0.47666241,3285.2,3284.8,3.04429]
[1737664190827,0.47666241,3285.2,3284.5,3.0446]
[1737664191153,1.5408,3285.4,3284.0,0.03043819]
[1737664191364,3.04396,3285.2,3284.2,3.04484]
[1737664191521,1.5408,3285.4,3284.5,3.04452]
[1737664191705,3.04448,3284.7,3283.6,3.04538]
[1737664191913,1.459,3285.1,3282.6,1.4889]
[1737664192111,1.459,3285.1,3282.2,3.04664]
[1737664192112,1.459,3283.9,3282.2,3.04664]
[1737664192448,1.459,3283.9,3282.4,3.04655]
[1737664192656,1.459,3283.9,3282.9,3.04606]
[1737664192869,1.459,3283.9,3282.2,3.04664]
[1737664193007,1.4253,3284.5,3283.6,3.04537]
[1737664193351,1.4253,3284.5,3281.8,4.91487911]
[1737664193525,1.4253,3284.5,3283.7,3.04531]
[1737664194355,1.4253,3284.5,3281.9,1.46934978]
[1737664194573,1.4253,3283.3,3282.0,3.04692]
[1737664194866,1.4253,3283.3,3281.3,4.91955166]
[1737664195029,1.4253,3283.3,3282.5,3.04645]
[1737664195358,4.47104,3283.3,3281.6,3.04725]
[1737664195564,1.4253,3283.3,3281.3,4.91955166]
[1737664195763,3.04593,3283.1,3282.0,3.04687]
[1737664195909,1.4253,3283.3,3282.2,3.04664]
[1737664196110,1.4253,3283.3,3281.7,3.04712]
[1737664196325,1.4253,3283.3,3282.9,3.04608]
[1737664196675,1.5666,3283.9,3281.9,4.91955166]
[1737664196850,1.5666,3283.9,3282.7,0.55]
[1737664197169,4.57492,3284.4,3283.1,3.04587]
[1737664197371,3.04481,3284.3,3283.1,3.04587]
[1737664197536,4.57492,3284.4,3282.9,0.55]
[1737664197732,4.57491,3284.4,3283.6,3.04536]
[1737664197916,1.5302,3284.4,3283.8,3.04519]
[1737664198361,1.5302,3284.4,3283.6,3.04536]
[1737664198652,3.04461,3284.5,3283.6,3.04536]
[1737664199074,3.04447,3284.7,3283.6,3.04536]
[1737664199215,3.04484,3284.3,3283.1,3.04589]
[1737664199415,3.04526,3283.8,3282.4,4.91618704]
[1737664199661,3.04528,3283.8,3282.9,3.04605]
[1737664200022,3.04455,3284.6,3283.7,3.04531]
[1737664200221,1.5346,3285.0,3283.0,4.91618704]
[1737664200417,3.0,3284.6,3281.9,0.57186929]
[1737664200632,3.0,3284.6,3280.8,2.0]
[1737664200633,3.04599,3283.0,3280.4,4.91618704]
[1737664200967,3.04599,3283.0,3280.2,0.249995]
[1737664200968,1.5665,3282.1,3280.9,3.04785]
[1737664201471,1.5665,3282.1,3280.1,6.09736]
[1737664201681,1.5665,3282.1,3279.8,3.04896]
[1737664201980,1.5665,3282.1,3281.0,3.04785]
[1737664202120,1.5665,3282.1,3281.5,3.04734]
[1737664202323,1.5665,3282.1,3279.8,3.298955]
[1737664202324,1.5665,3282.1,3280.6,3.04816]
[1737664202516,1.5665,3282.1,3280.9,3.0479]
[1737664202732,1.5665,3282.1,3279.5,4.91618704]
[1737664203121,1.5665,3282.1,3279.3,0.61913375]
[1737664203323,1.4665,3281.3,3280.2,3.04856]
[1737664203527,1.4665,3281.3,3280.6,3.04821]
[1737664203785,1.4665,3281.3,3280.0,3.0487]
[1737664204058,1.4665,3281.3,3278.9,4.91618704]
[1737664204059,1.4665,3280.1,3278.3,0.2142]
[1737664204231,1.4665,3280.1,3278.6,3.05003]
[1737664204762,1.4665,3280.1,3278.9,3.04971]
[1737664204968,1.4665,3280.1,3279.6,3.04914]
[1737664205165,1.4665,3280.1,3279.7,3.04904]
[1737664205480,1.4665,3281.4,3279.1,0.2142]
[1737664205757,1.4665,3281.4,3280.3,3.04847]
[1737664206123,3.04758,3281.3,3280.4,3.04839]
[1737664206339,3.04767,3281.2,3280.0,3.04872]
[1737664206654,3.04767,3281.2,3278.8,3.04987]
[1737664206655,1.5071,3281.1,3278.8,3.04989]
[1737664206857,1.5071,3280.6,3278.2,0.2142]
[1737664207022,1.5434,3279.8,3278.4,3.0502]
[1737664207357,3.47737795,3281.0,3276.7,3.2197408]
[1737664207358,3.04966,3279.1,3278.2,3.05044]
[1737664207565,3.04966,3279.1,3277.9,3.05071]
[1737664207566,3.04987,3278.9,3277.9,3.05071]
[1737664207725,3.05015,3278.6,3277.5,3.05104]
[1737664207922,3.05036,3278.3,3277.3,3.05129]
[1737664208124,3.0,3279.1,3276.7,0.1679708]
[1737664208125,4.91618704,3278.9,3276.8,3.05175]
[1737664208458,3.05096,3277.7,3276.7,0.1679708]
[1737664208670,1.5434,3278.2,3276.7,0.1679708]
[1737664208935,3.05057,3278.1,3276.8,3.05175]
[1737664209081,1.4258,3277.3,3276.7,0.1679708]
[1737664209280,1.4258,3277.3,3277.2,3.05138]
[1737664209486,1.4258,3278.4,3277.6,3.05099]
[1737664209723,1.4258,3279.0,3278.7,3.04994]
[1737664209917,1.4258,3280.6,3277.6,0.2142]
[1737664210196,1.4258,3280.6,3279.8,3.04896]
[1737664210499,3.04832,3280.5,3279.2,3.04948]
[1737664210681,1.4258,3280.6,3277.8,4.91618704]
[1737664210879,1.4258,3280.6,3278.1,0.55]
[1737664211078,1.4518,3279.8,3277.4,3.05111]
[1737664211334,1.4518,3279.8,3276.6,5.13038704]
[1737664211335,6.09978,3278.8,3276.8,3.05175]
[1737664211480,1.4518,3278.7,3276.7,0.1679708]
[1737664211684,3.05041,3278.3,3277.2,3.05138]
[1737664211894,3.05045,3278.2,3277.2,3.05138]
[1737664212101,3.05073,3277.9,3276.7,0.1679708]
[1737664212320,1.4584,3278.1,3276.7,0.1679708]
[1737664212507,1.4584,3278.1,3278.0,3.05064]
[1737664212708,0.5,3280.0,3276.7,0.1679708]
[1737664212709,1.4584,3278.7,3276.8,0.2142]
[1737664212912,0.5,3280.3,3277.1,3.05147]
[1737664212913,3.0505,3278.2,3277.1,3.05147]
[1737664213114,1.5023,3278.1,3276.7,0.1679708]
[1737664213315,1.5023,3278.1,3277.7,3.05089]
[1737664213514,1.2519,3278.1,3277.3,3.05127]
[1737664213720,1.2519,3278.1,3276.9,3.05165]
[1737664214026,3.0,3278.3,3276.7,0.1679708]
[1737664214027,3.0,3278.9,3276.8,3.05175]
[1737664214192,3.05121,3277.4,3276.7,0.1679708]
[1737664214392,7.96632704,3278.6,3276.4,0.03]
[1737664214393,3.0,3277.9,3276.4,0.03]
[1737664214629,3.05133,3277.3,3276.4,0.03]
[1737664214925,3.05203,3276.5,3276.4,0.03]
[1737664215330,3.05169,3276.9,3276.4,0.03]
[1737664215638,3.05169,3276.9,3275.5,3.05296]
[1737664215845,3.05169,3276.9,3272.3,1.52952144]
[1737664215846,3.05138,3277.2,3275.2,3.05319]
[1737664216052,3.05286,3275.7,3273.9,3.05446]
[1737664216193,3.05286,3275.7,3274.9,3.05348]
[1737664216420,3.05219,3276.4,3275.3,3.05309]
[1737664216625,1.5771,3276.3,3275.4,3.05304]
[1737664216843,1.5771,3276.3,3275.0,3.05336]
[1737664217080,1.5771,3276.3,3273.5,0.6625]
[1737664217239,7.91618704,3276.9,3274.5,3.05381]
[1737664217240,1.5771,3275.6,3274.5,3.05381]
[1737664217424,1.5771,3275.6,3273.5,0.6625]
[1737664217626,1.5771,3275.6,3273.6,3.05474]
[1737664217832,1.5771,3275.6,3275.5,3.05296]
[1737664218371,3.05235,3276.2,3273.5,3.71732]
[1737664218529,0.5,3276.6,3274.4,3.05394]
[1737664218925,1.5578,3275.2,3273.4,0.1679708]
[1737664219069,1.5578,3275.2,3274.6,3.05379]
[1737664219248,4.61107,3275.2,3274.3,3.05402]
[1737664219435,4.61105,3275.2,3273.9,3.05444]
[1737664219768,4.61105,3275.2,3273.4,0.1679708]
[1737664219769,3.05367,3274.8,3273.4,0.1679708]
[1737664220071,4.50704,3274.9,3273.9,3.05442]
[1737664220281,1.4535,3274.9,3273.6,3.05471]
[1737664220464,4.4535,3275.0,3273.4,0.1679708]
[1737664220666,1.4535,3273.9,3273.4,0.1679708]
[1737664220871,3.05353,3274.9,3273.4,0.1679708]
[1737664221157,1.4535,3275.6,3273.4,0.1679708]
[1737664221158,3.05436,3274.0,3273.4,0.1679708]
[1737664221372,5.41618704,3275.6,3273.4,0.1679708]
[1737664221373,1.4535,3273.8,3273.4,0.1679708]
[1737664221847,3.05512,3273.2,3272.3,3.05591]
[1737664222044,1.4535,3272.3,3270.6,0.8305]
[1737664222262,4.50946,3272.3,3271.4,3.05678]
[1737664222473,4.50946,3272.3,3270.1,3.2259108]
[1737664222474,8.0,3276.9,3271.5,0.5]
[1737664222629,8.0,3276.9,3273.2,3.05506]
[1737664222630,3.05419,3274.2,3273.2,3.05506]
[1737664222833,1.4535,3274.8,3273.8,0.5]
[1737664223066,1.4535,3274.8,3273.7,0.249995]
[1737664223067,1.4535,3274.8,3274.4,3.05395]
[1737664223277,1.4535,3274.8,3274.3,0.249995]
[1737664223436,1.4535,3274.8,3274.4,3.05399]
[1737664223642,3.0518,3276.8,3274.3,0.249995]
[1737664223643,1.4535,3275.7,3274.8,0.249995]
[1737664223868,1.4535,3275.7,3274.6,3.0538]
[1737664224085,1.4535,3275.7,3274.5,0.249995]
[1737664224086,3.05342,3275.1,3274.5,0.249995]
[1737664224302,1.4535,3275.0,3273.7,0.5]
[1737664224594,3.05393,3274.5,3273.7,0.5]
[1737664224793,1.4535,3275.0,3274.2,3.304145]
[1737664224993,1.4535,3275.0,3273.9,0.5]
[1737664224994,1.4535,3275.0,3274.6,0.249995]
[1737664225193,1.4535,3275.0,3274.4,0.5]
[1737664225358,1.4535,3275.0,3273.4,0.249995]
[1737664225565,4.50777,3274.2,3273.2,3.0551]
[1737664225901,1.4535,3274.2,3273.1,0.249995]
[1737664226511,3.05494,3273.4,3272.5,3.55576]
[1737664226709,3.05525,3273.1,3272.1,3.05608]
[1737664226892,3.05525,3273.1,3272.0,0.249995]
[1737664227076,3.05511,3273.2,3271.7,3.05648]
[1737664227278,3.05511,3273.2,3271.6,0.5]
[1737664227279,3.05596,3272.3,3271.3,3.05685]
[1737664227598,1.5028,3272.4,3272.0,0.249995]
[1737664227802,1.5028,3272.4,3270.8,0.249995]
[1737664228014,1.5629,3271.9,3270.5,3.05763]
[1737664228320,1.5629,3271.6,3269.5,0.249995]
[1737664228472,4.62081,3270.2,3269.5,0.249995]
[1737664228677,4.62081,3270.2,3269.2,0.249995]
[1737664229418,1.5629,3270.2,3269.3,0.5]
[1737664229598,1.5629,3270.2,3268.0,3.05991]
[1737664229599,1.5629,3267.4,3266.2,0.249995]
[1737664229773,1.5629,3267.4,3266.1,0.249995]
[1737664229970,0.5,3268.9,3265.4,3.0624]
[1737664229971,0.76325308,3268.2,3266.4,0.249995]
[1737664230173,3.06036,3267.6,3266.7,3.06118]
[1737664230518,1.5629,3267.3,3266.4,3.311415]
[1737664230810,1.5629,3267.3,3267.0,3.06089]
[1737664230994,1.5629,3267.3,3267.2,3.06072]
[1737664231202,4.91618704,3269.2,3267.0,3.06089]
[1737664231203,1.5629,3268.2,3267.0,3.06082]
[1737664231384,1.5629,3268.2,3267.0,3.06087]
[1737664231566,1.5629,3268.2,3266.9,0.249995]
[1737664231772,0.88599886,3268.7,3267.5,3.06044]
[1737664232127,3.05947,3268.6,3267.6,0.249995]
[1737664232282,3.05947,3268.6,3265.6,5.16618704]
[1737664232283,6.12032,3267.8,3265.2,4.08504]
[1737664232473,3.061,3266.9,3265.2,4.08504]
[1737664232669,3.06065,3267.3,3265.6,3.06221]
[1737664233003,3.061,3266.9,3265.6,3.06221]
[1737664233200,3.06067,3267.3,3266.1,3.06174]
[1737664233413,3.06054,3267.4,3266.2,3.06165]
[1737664233575,4.4988,3267.7,3266.5,3.06134]
[1737664233773,4.4988,3267.7,3266.5,3.06129]
[1737664234000,1.4385,3267.7,3265.7,38.0]
[1737664234199,1.5225,3269.5,3266.9,0.55]
[1737664234402,1.5225,3269.5,3265.7,3.0]
[1737664234403,1.5225,3268.3,3265.2,4.08506]
[1737664234606,4.5835,3266.9,3265.2,1.0225]
[1737664234820,1.5225,3266.9,3264.6,1.0225]
[1737664234978,1.5225,3266.9,3265.6,3.06213]
[1737664234979,3.06119,3266.7,3265.6,3.06213]
[1737664235187,4.58354,3266.9,3265.8,3.06201]
[1737664235391,1.5225,3266.9,3264.7,3.06306]
[1737664235631,4.58359,3266.9,3265.2,35.0]
[1737664235811,4.58359,3266.9,3265.7,3.06205]
[1737664235812,1.5225,3266.9,3265.7,3.06205]
[1737664236131,1.5225,3266.9,3265.4,3.06235]
[1737664236442,4.5225,3266.9,3265.3,3.06246]
[1737664236595,1.5225,3266.9,3265.3,3.06246]
[1737664236792,1.5225,3266.9,3265.4,3.06241]
[1737664237045,1.5225,3266.9,3264.4,0.09443661]
[1737664237046,3.06123,3266.7,3264.5,3.06325]
[1737664237185,3.06127,3266.7,3265.7,3.0621]
[1737664237387,1.5225,3266.9,3264.4,0.09443661]
[1737664237593,1.4904,3265.5,3264.4,0.09443661]
[1737664237817,3.06325,3264.5,3264.4,0.09443661]
[1737664238029,3.06241,3265.4,3264.4,0.09443661]
[1737664238254,1.4904,3265.5,3264.4,0.09443661]
[1737664238541,3.06319,3264.6,3264.4,0.09443661]
[1737664238751,7.61595,3264.5,3264.4,0.09443661]
[1737664239040,4.61595,3264.5,3264.4,0.09443661]
[1737664239607,1.5527,3264.5,3264.4,0.09443661]
[1737664240043,1.4589,3265.4,3264.4,0.09443661]
[1737664240202,1.4308,3266.4,3264.7,3.06306]
[1737664240403,1.4308,3266.4,3266.3,3.06156]
[1737664240718,2.452,3268.9,3264.9,3.0]
[1737664240719,1.4308,3267.2,3265.5,1.1905]
[1737664241045,4.91573274,3267.2,3264.8,1.1905]
[1737664241248,4.91618704,3265.8,3264.4,0.09443661]
[1737664241548,3.06325,3264.5,3264.4,0.09443661]
[1737664241709,6.06325,3264.5,3264.4,0.09443661]
[1737664242048,6.06325,3264.5,3262.3,3.06531]
[1737664242049,4.4949,3263.6,3262.0,3.06553]
[1737664242203,7.4949,3263.6,3261.4,1.1905]
[1737664242405,3.06428,3263.4,3261.8,3.06578]
[1737664242601,1.4524,3262.7,3261.5,3.06602]
[1737664242801,1.4524,3262.7,3261.7,3.06588]
[1737664243049,1.4524,3263.7,3263.1,3.06456]
[1737664243219,1.4524,3264.4,3262.2,1.3584]
[1737664243546,1.4524,3264.4,3262.9,3.06467]
[1737664243715,1.4524,3264.4,3262.2,1.3584]
[1737664243903,1.5386,3263.6,3261.3,1.77506667]
[1737664244131,3.0,3263.4,3261.3,0.41666667]
[1737664244499,3.0,3263.9,3259.0,3.06841]
[1737664244500,1.5201,3261.4,3259.0,3.06841]
[1737664244633,1.5201,3261.4,3260.3,3.06717]
[1737664244831,1.5201,3261.4,3259.0,3.06842]
[1737664245032,1.5201,3261.4,3258.9,1.5595]
[1737664245281,3.0668,3260.8,3258.9,1.5595]
[1737664245425,3.0668,3260.8,3258.4,3.06892]
[1737664245426,1.4282,3260.6,3258.4,0.25]
[1737664245629,4.4282,3259.4,3258.2,3.2926268]
[1737664245942,3.0,3259.1,3258.2,0.2234768]
[1737664246125,3.06835,3259.1,3258.2,0.2234768]
[1737664246330,1.4282,3259.4,3258.2,0.2234768]
[1737664246673,1.4282,3259.4,3259.2,3.06819]
[1737664246984,0.55,3260.7,3260.2,3.06729]
[1737664247134,1.4851,3261.5,3260.2,3.06729]
[1737664247595,3.06467,3263.0,3261.7,3.06583]
[1737664247728,4.06220851,3263.3,3261.7,3.06583]
[1737664247933,0.99782851,3263.3,3263.1,35.0]
[1737664248129,3.06353,3264.3,3263.1,35.0]
[1737664248432,0.25,3265.9,3264.3,3.06342]
[1737664248656,0.48018511,3265.9,3264.5,3.06319]
[1737664248947,3.06179,3266.1,3263.2,4.91618704]
[1737664249147,3.06179,3266.1,3262.3,0.5]
[1737664249148,4.91618704,3266.0,3262.5,0.25]
[1737664249491,0.5,3265.8,3262.0,5.16618704]
[1737664249772,3.4939487,3265.7,3261.9,4.91618704]
[1737664250077,0.65571907,3265.6,3263.4,4.91618704]
[1737664250370,0.65571907,3265.6,3262.2,35.0]
[1737664250371,0.40571907,3266.2,3265.2,3.06258]
[1737664250567,1.89441907,3266.8,3265.2,3.06256]
[1737664250791,3.06166,3266.2,3263.5,1.4456]
[1737664250945,3.06166,3266.2,3262.2,35.0]
[1737664250946,3.0,3264.2,3262.4,3.06515]
[1737664251129,1.5284,3264.1,3262.1,3.06541]
[1737664251333,1.5284,3264.1,3261.8,1.5726]
[1737664251543,1.5284,3264.1,3261.8,6.48878704]
[1737664251747,1.5284,3264.1,3263.8,3.06386]
[1737664251945,1.5284,3264.1,3262.5,3.06507]
[1737664252239,1.5284,3263.9,3260.4,1.5726]
[1737664252445,1.1743948,3263.8,3260.6,4.91618704]
[1737664252776,1.4372,3263.2,3260.4,1.5726]
[1737664253272,1.4372,3263.2,3261.3,4.91618704]
[1737664253487,0.7425961,3263.8,3263.6,3.06401]
[1737664254841,1.5021,3266.2,3264.2,4.91618704]
[1737664255173,1.5021,3266.2,3266.0,3.06182]
[1737664255401,1.5021,3266.2,3264.2,4.91618704]
[1737664255402,1.5021,3266.2,3264.2,7.97970704]
[1737664255607,3.06206,3265.8,3264.3,3.0634]
[1737664255881,1.5021,3266.2,3263.1,3.0]
[1737664256060,1.5021,3266.2,3265.1,3.06266]
[1737664256263,1.5021,3266.2,3263.7,3.06399]
[1737664256264,3.06226,3265.6,3263.7,3.06399]
[1737664256470,0.25,3266.5,3262.3,1.4595]
[1737664256471,1.563,3265.5,3262.3,1.4595]
[1737664256635,1.563,3265.5,3263.0,3.06461]
[1737664256636,1.563,3264.5,3263.0,3.06461]
[1737664256838,1.563,3264.5,3262.4,4.91618704]
[1737664257162,1.4421,3266.5,3263.9,4.91618704]
[1737664257362,1.4421,3265.2,3263.2,4.91618704]
[1737664257677,1.4421,3265.2,3263.4,3.6142]
[1737664257881,1.4421,3265.2,3263.1,3.06448]
[1737664258176,3.0,3264.5,3262.0,4.91618704]
[1737664258474,1.4421,3264.7,3262.8,3.06476]
[1737664258676,3.06214,3265.7,3261.5,7.5964]
[1737664258677,3.0,3263.7,3261.6,3.06597]
[1737664258993,3.0622,3265.7,3264.2,3.06347]
[1737664259280,3.0622,3265.7,3262.8,9.19455]
[1737664259281,1.4421,3264.5,3262.2,1.5304]
[1737664260244,0.48196011,3264.4,3262.9,3.06474]
[1737664260438,0.48196011,3264.4,3263.7,3.06397]
[1737664260639,2.03966011,3265.2,3263.4,4.91618704]
[1737664260839,1.5577,3267.4,3265.0,3.06274]
[1737664261105,1.5577,3266.1,3264.6,3.06309]
[1737664261242,1.5577,3265.0,3263.0,4.55003]
[1737664261437,1.5577,3265.0,3264.1,3.06361]
[1737664261771,1.5577,3266.3,3263.5,3.06419]
[1737664262081,1.5577,3266.3,3264.7,4.91618704]
[1737664262278,0.48196011,3267.6,3265.4,0.55]
[1737664262478,0.48196011,3267.6,3264.3,1.4854]
[1737664262479,1.5577,3267.5,3265.9,3.06192]
[1737664262699,1.5577,3267.3,3266.1,3.06168]
[1737664262910,1.5577,3267.3,3265.2,4.9682303]
[1737664263052,1.5577,3267.3,3266.4,3.06142]
[1737664263258,1.5577,3267.3,3265.8,5.5182303]
[1737664263479,1.5845,3268.3,3265.9,0.55]
[1737664263652,1.5845,3268.3,3267.0,3.06087]
[1737664263848,3.05982,3268.2,3266.4,3.06147]
[1737664264052,1.5845,3268.3,3266.9,3.06092]
[1737664264261,1.5845,3268.3,3267.1,3.06074]
[1737664264492,1.5845,3268.3,3265.9,3.06194]
[1737664264493,2.809664,3268.3,3267.7,3.0602]
[1737664264692,1.5845,3268.3,3267.1,0.55]
[1737664264854,1.5845,3268.3,3266.4,4.9682303]
[1737664265061,1.5845,3268.3,3267.2,3.06063]
[1737664265261,1.5179,3269.3,3268.6,3.05941]
[1737664265567,1.5179,3269.3,3267.1,6.5458303]
[1737664265808,1.5179,3269.3,3268.8,3.05916]
[1737664265958,1.5179,3269.3,3267.2,3.0]
[1737664266158,1.5179,3269.3,3267.1,6.7958303]
[1737664266159,3.05885,3269.2,3267.1,1.5776]
[1737664266398,1.5179,3269.3,3267.1,1.5776]
[1737664266399,1.5179,3269.3,3267.2,3.06072]
[1737664266696,1.5678,3270.2,3268.8,3.05918]
[1737664266867,1.5678,3270.2,3267.8,0.55]
[1737664267073,1.5678,3270.2,3267.7,1.4955]
[1737664267281,3.05859,3269.5,3267.7,4.5557]
[1737664267487,4.62572,3270.2,3267.7,4.5557]
[1737664267488,3.05816,3270.0,3268.6,3.05932]
[1737664267791,1.5678,3270.2,3267.7,1.4955]
[1737664267792,3.05834,3269.8,3268.4,3.05957]
[1737664267994,1.5678,3270.2,3267.7,1.4955]
[1737664268412,3.0588,3269.3,3267.7,4.55575]
[1737664268630,1.5678,3270.2,3267.7,1.4955]
[1737664268892,3.05827,3269.9,3268.7,3.05931]
[1737664269171,3.05871,3269.4,3267.8,3.06016]
[1737664269321,1.5678,3270.2,3267.7,4.55573]
[1737664269322,3.05897,3269.1,3267.7,4.55573]
[1737664269478,3.05884,3269.3,3267.8,0.55]
[1737664269680,1.5182,3268.8,3267.3,3.06063]
[1737664269879,5.96392283,3270.3,3267.3,3.06063]
[1737664269880,1.5182,3269.7,3267.3,0.55]
[1737664270077,0.99569253,3270.3,3267.7,1.4638]
[1737664270321,0.99569253,3270.3,3268.7,3.05929]
[1737664270479,3.05842,3269.7,3268.4,3.05955]
[1737664270687,0.99569253,3270.3,3269.3,3.05871]
[1737664270879,0.99569253,3270.3,3269.6,3.05844]
[1737664271498,0.99569253,3270.3,3269.9,3.05815]
[1737664271692,0.99569253,3270.3,3269.6,3.05845]
[1737664271892,0.99569253,3270.3,3269.3,3.05869]
[1737664272137,4.05359253,3270.3,3269.1,3.05885]
[1737664272435,0.99569253,3270.3,3269.7,3.05835]
[1737664272614,0.99569253,3270.3,3269.5,0.55]
[1737664272785,0.99569253,3270.3,3269.2,0.55]
[1737664273196,0.99569253,3270.3,3269.0,1.5985]
[1737664273398,0.99569253,3270.3,3269.6,3.05841]
[1737664273599,0.99569253,3270.3,3269.8,0.55]
[1737664273883,0.99569253,3270.3,3269.0,1.5985]
[1737664274200,0.99569253,3270.3,3268.4,4.50399]
[1737664274384,0.99569253,3270.3,3269.2,3.05881]
[1737664274385,1.5897,3270.2,3269.2,3.05881]
[1737664274586,1.5897,3270.2,3268.4,1.4444]
[1737664274587,0.99569253,3270.3,3269.8,3.05827]
[1737664274786,0.99569253,3270.3,3269.8,3.05824]
[1737664275022,0.99569253,3270.3,3269.3,3.05873]
[1737664275324,3.05801,3270.1,3268.6,3.05939]
[1737664275523,3.05801,3270.1,3267.1,4.95884169]
[1737664275524,1.5349,3269.7,3268.7,3.05931]
[1737664275725,1.5349,3269.7,3269.0,3.05897]
[1737664276034,2.53059253,3270.3,3268.2,0.55]
[1737664276235,2.53059253,3270.3,3269.3,3.05868]
[1737664276443,2.53059253,3270.3,3268.8,3.05915]
[1737664276444,3.05803,3270.1,3268.8,3.05914]
[1737664276604,2.53059253,3270.3,3269.1,3.05887]
[1737664276926,2.53059253,3270.3,3269.5,3.05854]
[1737664277087,0.99569253,3270.3,3269.9,3.05819]
[1737664277285,0.99569253,3270.3,3269.1,3.0]
[1737664277627,0.99569253,3270.3,3269.6,3.05843]
[1737664277926,3.0583,3269.8,3268.5,3.05945]
[1737664278124,0.99569253,3270.3,3267.8,1.5426]
[1737664278125,1.4478,3270.2,3268.8,3.05913]
[1737664278327,1.4478,3270.2,3269.0,3.05901]
[1737664278827,1.4478,3270.2,3269.4,3.05865]
[1737664279032,1.4478,3270.2,3268.1,3.0]
[1737664279200,0.99569253,3270.3,3265.7,0.304]
[1737664279201,0.99569253,3270.3,3270.0,3.05801]
[1737664279389,1.4985,3271.4,3270.4,3.05768]
[1737664279585,1.4985,3271.4,3269.7,1.5461]
[1737664279586,1.4985,3271.4,3269.8,6.11655]
[1737664279887,0.0034688,3271.5,3270.8,0.55]
[1737664280092,0.0034688,3271.5,3270.8,3.05731]
[1737664280427,0.0034688,3271.5,3271.4,3.60679]
[1737664280628,0.0034688,3271.5,3271.4,3.05679]
[1737664280818,0.0034688,3271.5,3271.3,0.55]
[1737664281016,0.0034688,3271.5,3269.9,35.0]
[1737664281017,0.0034688,3271.5,3269.9,38.05817]
[1737664281191,0.0034688,3271.5,3271.1,3.05703]
[1737664281392,0.0034688,3271.5,3271.1,3.05702]
[1737664281587,0.0034688,3271.5,3269.1,7.03834277]
[1737664281828,0.0034688,3271.5,3268.7,3.05927]
[1737664282033,0.0034688,3271.5,3270.6,3.05751]
[1737664282193,0.0034688,3271.5,3270.3,3.05778]
[1737664282392,0.0034688,3271.5,3269.7,1.5461]
[1737664282704,1.4985,3271.4,3269.2,0.6184848]
[1737664283032,1.4985,3271.4,3269.5,3.05857]
[1737664283344,1.4985,3271.4,3269.4,3.05859]
[1737664283519,3.05803,3270.1,3268.8,3.05919]
[1737664283829,6.45554189,3271.2,3269.0,3.05902]
[1737664283830,4.55556,3271.2,3269.0,3.05902]
[1737664284180,1.4985,3271.2,3270.4,3.05769]
[1737664284296,1.4985,3271.2,3270.1,3.05792]
[1737664284629,1.4985,3271.2,3268.9,1.5461]
[1737664284630,3.05746,3270.7,3269.2,3.05877]
[1737664284940,3.0,3270.9,3268.2,1.4672]
[1737664285229,4.95704189,3271.2,3268.2,1.4672]
[1737664285230,1.5114,3270.0,3269.0,3.05901]
[1737664285593,1.5114,3270.0,3268.7,3.05923]
[1737664285937,1.5114,3270.0,3267.4,1.4672]
[1737664286248,3.05831,3269.8,3268.7,3.0593]
[1737664286393,4.56953,3270.0,3267.5,35.0]
[1737664286394,4.56953,3270.0,3268.8,3.05918]
[1737664286593,1.5114,3270.0,3267.4,1.4672]
[1737664286889,3.0,3269.9,3267.8,35.0]
[1737664287092,1.5114,3270.0,3267.8,35.0]
[1737664287290,1.5114,3270.0,3269.2,3.05878]
[1737664287527,1.4634,3271.0,3269.9,3.05819]
[1737664287727,3.05754,3270.6,3269.6,3.0584]
[1737664288156,1.4672,3270.7,3268.3,1.5158]
[1737664288377,1.4672,3270.0,3268.4,3.05958]
[1737664288684,1.4672,3270.0,3268.4,3.05959]
[1737664288836,3.0,3269.9,3267.4,1.5987]
[1737664289164,3.05855,3269.6,3268.6,3.05939]
[1737664289555,3.05848,3269.6,3268.6,3.05941]
[1737664289755,1.4672,3270.0,3267.4,1.5987]
[1737664289756,1.4672,3270.0,3269.7,3.05829]
[1737664289957,1.4672,3271.2,3269.9,3.05819]
[1737664290157,3.05762,3270.6,3269.5,3.0585]
[1737664290323,3.0,3271.0,3268.7,1.5987]
[1737664290324,3.05775,3270.4,3269.1,3.05894]
[1737664290524,3.05791,3270.2,3268.9,3.05905]
[1737664290723,1.4672,3270.3,3267.8,4.65886]
[1737664290724,1.4672,3270.3,3267.9,3.05999]
[1737664290918,1.4672,3270.3,3268.9,3.05908]
[1737664290919,3.05801,3270.1,3268.9,3.05908]
[1737664291223,3.0,3270.2,3268.9,3.05905]
[1737664291417,3.05809,3270.1,3269.0,3.05903]
[1737664291686,4.5251,3270.3,3268.9,0.55]
[1737664291687,1.4672,3270.3,3268.9,0.55]
[1737664291827,1.4672,3270.3,3269.1,5.1487]